bitfinex-derivatives/quotes_ETHF0:USTF0_20240915
["timestamp","ask_amount","ask_price","bid_price","bid_amount"]
[1726412118559,0.41497,2409.2,2409.1,8.34943046]
[1726412121871,0.41497,2409.2,2409.1,6.1733933]
[1726412122271,0.41497,2409.2,2409.1,8.35203407]
[1726412122965,12.01049,2409.2,2409.1,1.08941544]
[1726412123165,0.41498,2409.1,2409.0,1.08941544]
[1726412123371,9.65968,2409.1,2409.0,1.08941544]
[1726412123568,1.03751,2409.0,2408.7,2.17864077]
[1726412123769,1.03751,2409.0,2408.6,3.90074645]
[1726412123770,0.41502,2408.9,2408.8,2.86257847]
[1726412123972,4.02972,2408.9,2408.8,2.86257847]
[1726412124161,8.18092,2408.9,2408.8,1.08897782]
[1726412124358,9.68092,2408.9,2408.8,1.08897782]
[1726412124563,0.41504,2408.8,2408.7,1.08897782]
[1726412124772,6.06624,2408.8,2408.6,1.08897782]
[1726412125071,0.41507,2408.6,2408.5,1.08897782]
[1726412125264,1.91509,2408.5,2408.4,1.08897782]
[1726412125467,1.91509,2408.5,2408.4,1.08793463]
[1726412125973,1.91509,2408.5,2408.2,0.7702]
[1726412125974,0.4151,2408.4,2408.3,1.08793463]
[1726412126282,1.9151,2408.4,2408.3,1.77177549]
[1726412126464,1.9151,2408.4,2408.3,1.08740945]
[1726412127468,1.9151,2408.4,2408.2,1.85760945]
[1726412128772,3.2078,2408.3,2408.2,1.85760945]
[1726412129563,3.2078,2408.3,2408.2,0.7702]
[1726412129770,3.2078,2408.3,2408.2,1.85760945]
[1726412129771,4.7078,2408.3,2408.2,1.85760945]
[1726412130070,1.5,2408.3,2408.2,1.85760945]
[1726412130264,1.5,2408.5,2408.2,1.85760945]
[1726412130665,1.5,2408.7,2408.3,11.95198371]
[1726412130862,3.3198,2409.1,2408.4,1.50250945]
[1726412130863,0.51203,2408.9,2408.4,1.50250945]
[1726412131163,0.51203,2408.9,2408.5,0.3799]
[1726412131164,1.5,2408.8,2408.5,0.3799]
[1726412131369,1.5,2408.8,2408.6,0.408]
[1726412131669,1.5,2408.8,2408.6,0.8127]
[1726412131870,3.71979,2409.1,2408.6,3.81516945]
[1726412132069,5.12279,2409.1,2408.6,3.81516945]
[1726412132265,4.7078,2409.1,2408.8,1.50243945]
[1726412132779,4.7078,2409.1,2408.8,1.08740945]
[1726412133078,4.7078,2409.1,2408.9,1.08740945]
[1726412133079,3.2078,2409.1,2408.9,1.08740945]
[1726412133272,3.2078,2409.1,2409.0,0.3799]
[1726412133468,3.2078,2409.1,2409.0,0.7846]
[1726412133668,3.2078,2409.1,2409.0,1.87200945]
[1726412134280,3.2078,2409.1,2409.0,0.7846]
[1726412137471,3.2078,2409.1,2409.0,1.87200945]
[1726412137674,3.2078,2409.1,2409.0,0.7846]
[1726412138578,3.2078,2409.1,2409.0,6.02320945]
[1726412140576,3.2078,2409.1,2409.0,6.43820945]
[1726412140973,1.5,2409.4,2409.1,0.41498]
[1726412141173,1.5,2409.4,2409.2,0.4038]
[1726412143082,3.62272,2409.5,2409.2,0.4038]
[1726412143287,1.5,2409.4,2409.2,0.4038]
[1726412144480,1.91494,2409.4,2409.2,0.4038]
[1726412144987,1.5,2409.4,2409.2,0.4038]
[1726412145179,2.3262,2409.6,2409.2,0.4038]
[1726412145373,2.3262,2409.6,2409.2,1.90616945]
[1726412145685,1.5,2409.4,2409.3,0.41495]
[1726412146083,1.5,2409.4,2409.2,1.90616945]
[1726412147987,1.5,2409.4,2409.3,0.41495]
[1726412148183,1.5,2409.4,2409.2,1.90616945]
[1726412148384,0.097,2409.8,2409.3,13.83636681]
[1726412148585,3.71962,2410.1,2409.6,0.41488]
[1726412148794,1.5,2409.9,2409.7,0.3919]
[1726412148989,1.5,2409.9,2409.8,0.3926]
[1726412149180,0.802,2410.2,2409.8,0.768]
[1726412149380,0.3884,2410.2,2409.8,8.40606885]
[1726412149682,3.6955,2410.4,2409.9,1.08518951]
[1726412149884,1.5,2410.3,2409.9,1.50001951]
[1726412150080,1.5,2410.3,2410.0,0.41483]
[1726412150287,1.5,2410.2,2410.0,1.08518951]
[1726412150482,1.5,2410.2,2410.0,0.41482]
[1726412153779,1.5,2410.3,2410.0,0.41482]
[1726412155691,0.3907,2410.4,2410.0,0.41482]
[1726412155887,1.5,2410.3,2410.0,0.41482]
[1726412156689,1.5,2410.3,2410.1,0.395]
[1726412157190,1.5,2410.3,2410.1,0.80981]
[1726412157900,1.5,2410.3,2410.2,0.7743]
[1726412161797,5.0985,2410.4,2410.2,0.7743]
[1726412162098,3.5985,2410.4,2410.3,0.41478]
[1726412164099,3.2078,2410.4,2410.3,0.41478]
[1726412164401,3.2078,2410.4,2410.3,4.56358]
[1726412165294,3.2078,2410.4,2410.3,4.1488]
[1726412165497,3.2078,2410.4,2410.3,4.56358]
[1726412165700,1.5,2410.5,2410.3,4.56358]
[1726412166003,1.5,2410.5,2410.3,0.41478]
[1726412166397,0.3987,2410.6,2410.5,0.41474]
[1726412166595,4.8048,2410.8,2410.6,0.41473]
[1726412166596,4.7078,2410.8,2410.6,0.41473]
[1726412166993,4.7078,2410.8,2410.5,0.81354]
[1726412167204,3.2078,2410.8,2410.5,0.3988]
[1726412167502,4.7078,2410.8,2410.7,0.41471]
[1726412167708,4.7078,2410.8,2410.6,5.66137768]
[1726412168200,4.7078,2410.8,2410.6,5.24665768]
[1726412168401,4.7078,2410.8,2410.6,5.66137768]
[1726412168908,4.7078,2410.8,2410.6,5.24665768]
[1726412169098,4.7078,2410.8,2410.6,5.66137768]
[1726412169296,3.2078,2410.8,2410.7,0.41471]
[1726412169515,3.2078,2410.8,2410.6,5.66137768]
[1726412169805,0.8139,2410.9,2410.6,5.24665768]
[1726412169998,0.8139,2410.9,2410.7,0.4147]
[1726412170198,3.2078,2411.1,2410.7,1.5]
[1726412170394,0.2956,2411.3,2411.0,1.5]
[1726412170395,0.097,2411.3,2411.0,1.5]
[1726412170598,1.597,2411.7,2411.2,1.5]
[1726412170902,1.5,2411.3,2411.1,8.774868]
[1726412171097,1.5,2411.3,2411.1,4.3741]
[1726412171293,1.5,2411.3,2411.1,1.1663]
[1726412171900,3.24,2411.6,2411.1,1.1663]
[1726412172100,3.24,2411.6,2411.2,4.32742266]
[1726412173799,3.2078,2411.7,2411.2,4.32742266]
[1726412174000,3.2078,2411.7,2411.3,0.4146]
[1726412174400,3.2078,2411.7,2411.5,0.41456]
[1726412174608,0.097,2411.9,2411.4,4.97475184]
[1726412174609,0.4116,2411.8,2411.4,4.97475184]
[1726412174809,0.4116,2411.8,2411.5,0.8054]
[1726412175009,0.4116,2411.8,2411.5,1.21997]
[1726412175604,0.4116,2411.8,2411.6,0.4011]
[1726412175804,0.4042,2411.9,2411.6,5.05129324]
[1726412176010,0.4116,2412.0,2411.6,8.67364324]
[1726412176805,0.4116,2412.0,2411.6,8.25909324]
[1726412177009,0.4116,2412.0,2411.7,0.41452]
[1726412177315,6.852,2412.2,2411.8,4.77088181]
[1726412177609,7.2635,2412.2,2411.8,4.77088181]
[1726412178708,4.0235,2412.2,2411.8,4.77088181]
[1726412179010,4.0235,2412.2,2411.9,0.4118]
[1726412179011,0.8157,2412.2,2411.9,0.4118]
[1726412179313,4.0235,2412.2,2411.9,0.4118]
[1726412182708,0.8157,2412.2,2411.9,0.4118]
[1726412183209,4.0235,2412.2,2411.9,0.4118]
[1726412183411,4.43795,2412.2,2411.9,0.4118]
[1726412184307,3.65447,2412.1,2411.8,4.77088181]
[1726412184909,3.24,2412.1,2411.8,4.77088181]
[1726412185909,3.24,2412.1,2411.7,0.3826]
[1726412185910,3.2078,2411.9,2411.7,0.3826]
[1726412186115,3.65448,2412.1,2411.7,0.3826]
[1726412186116,0.41449,2412.0,2411.7,0.3826]
[1726412186316,3.65448,2412.1,2411.7,0.3826]
[1726412187311,0.41449,2412.0,2411.7,0.3826]
[1726412187705,3.24,2412.1,2411.7,0.3826]
[1726412187706,3.65447,2412.1,2411.7,0.3826]
[1726412187923,0.41449,2412.0,2411.7,0.3826]
[1726412188723,3.65448,2412.1,2411.7,0.3826]
[1726412188920,3.24,2412.1,2411.7,0.3826]
[1726412189104,3.24,2412.1,2411.8,4.33143083]
[1726412189416,3.24,2412.1,2411.9,0.3902]
[1726412189813,4.43796,2412.2,2411.9,0.3902]
[1726412190005,4.43796,2412.2,2412.0,0.4042]
[1726412190407,4.0235,2412.2,2412.0,0.4042]
[1726412190610,4.0235,2412.2,2412.1,0.4145]
[1726412190810,4.43795,2412.2,2412.1,0.4145]
[1726412192617,4.43795,2412.2,2412.0,0.4042]
[1726412193122,3.65447,2412.1,2412.0,0.4042]
[1726412193322,8.1691,2412.2,2411.7,0.3947]
[1726412193527,3.24,2411.8,2411.4,4.13]
[1726412193815,1.23479,2412.1,2411.3,0.3947]
[1726412193816,3.24,2411.5,2411.3,0.3947]
[1726412194012,0.4146,2411.4,2410.8,7.5468]
[1726412194213,6.4478,2411.3,2410.9,0.3947]
[1726412194519,3.24,2411.0,2410.9,4.75331785]
[1726412194720,0.83033,2411.2,2410.8,0.388]
[1726412194926,3.24,2411.1,2410.8,0.388]
[1726412195128,3.65465,2411.1,2410.8,0.388]
[1726412195436,3.65465,2411.1,2410.6,0.3853]
[1726412195437,3.2078,2410.9,2410.6,0.3853]
[1726412195923,0.4041,2410.9,2410.6,0.7977]
[1726412196124,0.4041,2410.9,2410.2,11.81438559]
[1726412196325,3.24,2410.8,2410.3,0.7977]
[1726412196627,3.24,2410.8,2410.3,5.44180329]
[1726412197425,0.4041,2410.9,2410.3,5.44180329]
[1726412197629,3.2078,2411.0,2410.5,6.4478]
[1726412197929,0.92732,2411.2,2410.6,4.69244762]
[1726412198116,0.92732,2411.2,2410.7,0.3789]
[1726412198117,3.7205,2411.2,2410.7,0.3789]
[1726412198317,3.6235,2411.2,2410.7,0.3789]
[1726412199729,3.6235,2411.2,2410.8,4.75640768]
[1726412200117,3.2078,2411.2,2410.8,4.75640768]
[1726412200424,3.6194,2411.3,2410.8,4.75640768]
[1726412201421,4.03401,2411.3,2410.8,4.75640768]
[1726412201621,3.24,2411.1,2410.8,4.75640768]
[1726412201825,6.86248,2410.9,2410.3,1.49758951]
[1726412202032,3.24,2410.7,2410.4,0.3894]
[1726412202236,3.24,2410.7,2410.4,5.12138452]
[1726412202634,3.65471,2410.7,2410.4,0.3894]
[1726412202835,0.7798,2410.8,2410.3,0.4124]
[1726412202836,3.24,2410.5,2410.3,0.4124]
[1726412203033,3.62253,2410.6,2410.3,0.4124]
[1726412203034,3.2078,2410.6,2410.3,0.4124]
[1726412203338,3.6277,2410.4,2409.9,4.13]
[1726412203633,3.2078,2410.2,2409.8,1.1869]
[1726412203934,3.2078,2410.2,2409.9,4.78959219]
[1726412204432,4.04246,2410.4,2409.9,4.78959219]
[1726412204433,3.2078,2410.3,2409.9,4.78959219]
[1726412204628,3.62259,2410.3,2409.9,4.78959219]
[1726412204937,3.6548,2410.2,2409.8,0.3894]
[1726412205834,6.86258,2410.3,2409.8,0.3894]
[1726412206730,3.2078,2410.3,2409.8,0.3894]
[1726412208436,0.3877,2410.4,2409.9,7.65261025]
[1726412208641,3.2078,2410.4,2409.9,7.65261025]
[1726412208935,3.2078,2410.4,2409.9,4.44481025]
[1726412209835,3.2078,2410.4,2409.9,7.65261025]
[1726412210740,3.2078,2410.4,2409.9,4.44481025]
[1726412211035,3.2078,2410.4,2409.9,8.06745025]
[1726412211235,3.2078,2410.4,2410.0,4.05142]
[1726412211432,0.41474,2410.6,2410.0,4.0518]
[1726412211636,0.41474,2410.6,2410.1,4.3974558]
[1726412212131,0.41474,2410.6,2410.2,0.411]
[1726412212940,3.2078,2410.7,2410.2,0.411]
[1726412213240,3.2078,2410.7,2410.4,3.24]
[1726412213445,0.51168,2410.9,2410.4,3.24]
[1726412213636,0.41467,2411.0,2410.5,4.72138844]
[1726412213840,0.41467,2410.9,2410.6,0.4065]
[1726412214338,0.3885,2411.1,2410.6,0.4065]
[1726412214644,0.80314,2411.1,2410.6,0.7867]
[1726412214843,0.3885,2411.1,2410.6,0.7867]
[1726412215036,3.75163,2411.2,2410.6,1.60992]
[1726412215344,3.2078,2411.1,2410.6,1.1952]
[1726412217648,3.2078,2411.1,2410.6,1.60992]
[1726412217844,3.65463,2411.2,2410.6,1.60992]
[1726412218144,3.24,2411.2,2410.7,0.41471]
[1726412218344,0.395,2411.3,2410.8,3.24]
[1726412218652,0.395,2411.3,2410.9,0.41467]
[1726412218840,0.395,2411.3,2410.9,5.14918237]
[1726412219041,0.395,2411.3,2411.0,0.4065]
[1726412219353,0.097,2411.7,2411.1,7.72384122]
[1726412219647,0.4072,2411.6,2411.1,7.72384122]
[1726412220246,3.6472,2411.6,2411.1,7.72384122]
[1726412220442,3.2078,2411.5,2411.1,7.72384122]
[1726412222354,3.62237,2411.5,2411.1,7.72384122]
[1726412222854,6.86237,2411.5,2411.1,7.72384122]
[1726412224651,6.86237,2411.5,2411.1,3.2078]
[1726412224847,0.41459,2411.4,2411.1,3.2078]
[1726412225250,6.4478,2411.5,2411.0,0.4065]
[1726412225251,3.65461,2411.3,2411.0,0.4065]
[1726412225946,3.2078,2411.5,2411.2,3.24]
[1726412226150,0.3823,2411.7,2411.2,6.86241]
[1726412226353,3.5973,2411.8,2411.3,5.49237125]
[1726412226354,6.8373,2411.8,2411.3,5.49237125]
[1726412226554,6.8373,2411.8,2411.3,0.38]
[1726412226555,3.2078,2411.5,2411.3,0.38]
[1726412227245,3.62237,2411.5,2411.0,0.4065]
[1726412227444,4.01637,2411.5,2411.0,0.7865]
[1726412227653,0.3895,2411.4,2411.0,0.7865]
[1726412229749,0.3895,2411.4,2410.6,8.07650135]
[1726412229750,3.24,2411.2,2410.6,4.70769951]
[1726412229956,0.41462,2411.3,2410.9,0.4162]
[1726412230552,4.04409,2411.4,2410.9,0.4162]
[1726412231464,3.6988,2411.5,2410.9,0.4162]
[1726412231465,4.11338,2411.5,2410.9,0.4162]
[1726412231752,0.097,2411.5,2411.2,0.41462]
[1726412231957,7.71033,2411.8,2411.3,0.413]
[1726412231958,3.62233,2411.8,2411.3,0.413]
[1726412232160,3.62233,2411.8,2411.4,0.7798]
[1726412232161,6.4478,2411.8,2411.4,0.7798]
[1726412232352,6.86233,2411.8,2411.4,0.7798]
[1726412232963,6.86232,2411.8,2411.4,0.7798]
[1726412233356,6.4478,2411.8,2411.4,0.7798]
[1726412233555,3.2078,2411.8,2411.4,0.7798]
[1726412234455,3.2078,2411.8,2411.4,1.19439]
[1726412235265,3.3048,2412.1,2411.5,4.80932831]
[1726412235459,3.2078,2412.1,2411.5,4.80932831]
[1726412235656,4.0314,2412.2,2411.4,0.7798]
[1726412235657,6.4478,2411.8,2411.4,0.7798]
[1726412235862,0.4085,2411.7,2411.4,0.7798]
[1726412236057,3.2078,2411.5,2411.4,0.7798]
[1726412236771,2.58557978,2411.5,2411.4,0.7798]
[1726412237066,0.7914,2411.7,2411.4,0.7798]
[1726412237466,4.41374,2411.7,2411.4,0.7798]
[1726412237657,3.24,2411.6,2411.0,5.21518951]
[1726412237967,3.65456,2411.6,2411.1,0.3873]
[1726412238166,3.2078,2411.4,2411.1,0.3873]
[1726412238970,3.65456,2411.6,2411.1,0.3873]
[1726412239666,6.4478,2411.4,2411.1,0.3873]
[1726412240266,0.398,2411.3,2411.0,4.13]
[1726412240471,0.3992,2411.2,2411.0,4.13]
[1726412241065,0.3992,2411.2,2410.8,2.29498951]
[1726412242379,0.3992,2411.2,2410.8,1.2098]
[1726412242380,3.6392,2411.2,2410.8,1.2098]
[1726412242669,3.2078,2411.1,2410.8,1.2098]
[1726412243076,3.6392,2411.2,2410.8,1.2098]
[1726412243373,4.05382,2411.2,2410.8,1.2098]
[1726412244166,3.6392,2411.2,2410.8,1.2098]
[1726412244377,4.05382,2411.2,2410.8,1.2098]
[1726412244867,3.6392,2411.2,2410.8,1.2098]
[1726412245264,0.81261,2411.3,2410.8,1.2098]
[1726412245476,0.398,2411.3,2410.8,4.86449]
[1726412245664,0.398,2411.3,2410.9,3.2078]
[1726412246080,0.097,2411.6,2411.1,0.41463]
[1726412246371,4.01145,2411.7,2411.1,0.41463]
[1726412246578,4.01145,2411.7,2411.2,0.3878]
[1726412246777,4.01145,2411.7,2411.3,0.7851]
[1726412247070,4.01144,2411.7,2411.3,0.7851]
[1726412248477,3.65456,2411.6,2411.3,0.7851]
[1726412249370,3.24,2411.6,2411.3,0.7851]
[1726412249576,3.2078,2411.7,2411.6,0.41455]
[1726412249777,0.33255268,2412.2,2412.1,0.41447]
[1726412249778,0.097,2412.2,2412.1,0.41447]
[1726412249966,3.2078,2412.6,2412.1,3.65447]
[1726412250271,3.2078,2412.6,2412.2,0.7655]
[1726412250479,3.2078,2412.6,2412.2,1.1698]
[1726412250873,3.62218,2412.6,2412.2,1.1698]
[1726412251274,3.62219,2412.6,2412.2,1.1698]
[1726412252078,3.2078,2412.6,2412.2,1.1698]
[1726412252274,3.62218,2412.6,2412.2,1.1698]
[1726412253282,3.62218,2412.6,2411.7,1.62870135]
[1726412253283,3.2078,2412.3,2411.6,4.49684526]
[1726412253480,3.2078,2412.3,2411.6,4.03095]
[1726412253481,0.41448,2412.1,2411.6,4.03095]
[1726412254575,0.816,2412.2,2411.6,3.6164]
[1726412254784,0.816,2412.2,2411.8,0.41452]
[1726412254981,0.816,2412.2,2411.7,0.41453]
[1726412255181,1.23045,2412.2,2411.7,0.41453]
[1726412256584,3.2078,2412.3,2411.7,3.24]
[1726412256773,0.097,2412.4,2411.9,6.4478]
[1726412256774,0.51143,2412.4,2411.9,6.4478]
[1726412257085,0.41443,2412.4,2412.0,1.1805]
[1726412257384,0.81021,2412.5,2412.0,1.1805]
[1726412257682,0.41442,2412.4,2412.0,1.1805]
[1726412257877,0.3958,2412.5,2412.0,1.1805]
[1726412258078,0.41442,2412.4,2412.0,1.1805]
[1726412259583,3.62222,2412.4,2412.0,1.1805]
[1726412260172,0.41444,2412.3,2412.0,1.1805]
[1726412260379,3.2078,2412.4,2412.0,1.1805]
[1726412260980,3.62222,2412.4,2412.0,1.1805]
[1726412261381,0.41443,2412.3,2412.0,1.1805]
[1726412262084,3.62222,2412.4,2412.0,1.1805]
[1726412263887,0.41444,2412.3,2412.0,1.1805]
[1726412264086,3.62223,2412.4,2412.0,1.1805]
[1726412264789,3.62222,2412.4,2412.0,1.1805]
[1726412265285,0.41445,2412.3,2412.0,1.1805]
[1726412265487,3.2078,2412.4,2412.0,1.1805]
[1726412265686,0.80665,2412.2,2412.0,1.1805]
[1726412266089,0.3922,2412.2,2412.0,1.1805]
[1726412268089,0.41444,2412.3,2412.0,1.1805]
[1726412270591,0.82553,2412.4,2412.0,1.1805]
[1726412270998,0.82553,2412.4,2412.0,4.3883]
[1726412270999,0.41443,2412.4,2412.0,4.3883]
[1726412271699,0.91079,2412.6,2412.1,0.41446]
[1726412271896,0.3994,2412.6,2412.0,7.6283]
[1726412272095,0.4144,2412.5,2412.0,8.04277]
[1726412274298,3.6191,2412.7,2412.2,3.65444]
[1726412274299,4.03348,2412.7,2412.2,3.65444]
[1726412274592,0.41438,2412.7,2412.3,3.2078]
[1726412274792,0.097,2412.8,2412.3,3.62223]
[1726412274793,0.51136,2412.8,2412.3,3.62223]
[1726412275094,0.41437,2412.7,2412.4,0.4145]
[1726412275294,0.41437,2412.7,2412.5,0.753]
[1726412275497,0.41436,2412.8,2412.5,0.753]
[1726412276899,0.79944,2412.9,2412.5,0.753]
[1726412277598,0.41435,2412.8,2412.5,0.753]
[1726412277797,0.3851,2412.9,2412.5,0.753]
[1726412277798,0.41436,2412.7,2412.5,0.753]
[1726412278008,0.41438,2412.6,2412.5,0.753]
[1726412278894,0.79288,2412.6,2412.5,0.753]
[1726412279095,0.3785,2412.6,2412.5,0.753]
[1726412279402,0.79288,2412.6,2412.5,0.753]
[1726412279791,1.19218,2412.6,2412.5,0.753]
[1726412280189,0.41442,2412.4,2412.0,8.83231526]
[1726412280396,0.41442,2412.4,2412.1,1.2211]
[1726412281008,0.41445,2412.3,2412.1,1.2211]
[1726412281298,0.81325,2412.3,2412.1,1.2211]
[1726412281503,0.41445,2412.3,2412.1,1.2211]
[1726412281900,3.2078,2412.4,2412.1,1.2211]
[1726412282104,0.41444,2412.3,2412.1,1.2211]
[1726412288109,3.62221,2412.5,2412.1,1.63557]
[1726412288303,3.62221,2412.5,2412.1,1.2211]
[1726412288509,1.21526256,2412.8,2412.1,1.63556]
[1726412288510,0.41439,2412.6,2412.1,1.63556]
[1726412288709,0.4144,2412.5,2412.1,1.2211]
[1726412288905,1.21526256,2412.8,2412.1,1.2211]
[1726412289503,0.4144,2412.5,2412.1,1.2211]
[1726412290421,0.8172,2412.5,2412.1,2.30114526]
[1726412290716,0.41444,2412.3,2412.1,1.2211]
[1726412291416,0.4028,2412.5,2412.1,2.30114526]
[1726412292511,0.4028,2412.5,2412.2,1.08004526]
[1726412292512,0.41441,2412.5,2412.2,1.08004526]
[1726412293308,3.2078,2412.6,2412.2,1.08004526]
[1726412293810,0.4144,2412.5,2412.2,1.08004526]
[1726412294414,3.62219,2412.6,2412.2,1.08004526]
[1726412294608,0.81028,2412.7,2412.3,1.08004526]
[1726412294806,0.41438,2412.6,2412.3,1.08004526]
[1726412295017,0.41438,2412.6,2412.4,0.4103]
[1726412295210,0.3959,2412.7,2412.4,0.4103]
[1726412295211,0.81028,2412.7,2412.4,0.4103]
[1726412295411,0.41438,2412.6,2412.4,0.4103]
[1726412295612,0.41438,2412.6,2412.4,1.49034526]
[1726412295921,0.81028,2412.7,2412.4,1.49034526]
[1726412296515,0.41438,2412.7,2412.4,1.49034526]
[1726412296914,0.41438,2412.7,2412.5,0.7649]
[1726412297420,0.41435,2412.8,2412.5,1.84494526]
[1726412298217,3.5897,2412.9,2412.5,1.84494526]
[1726412298218,6.8297,2412.9,2412.5,1.84494526]
[1726412298425,3.62218,2412.6,2412.5,0.3837]
[1726412298719,0.4144,2412.5,2412.4,1.49034526]
[1726412299315,3.62219,2412.6,2412.4,1.49034526]
[1726412299614,0.41439,2412.6,2412.4,1.49034526]
[1726412301540,0.4144,2412.5,2412.4,1.49034526]
[1726412301734,0.8197,2412.5,2412.4,0.4103]
[1726412302033,0.41442,2412.4,2412.3,1.08004526]
[1726412302541,4.56002,2412.4,2412.3,1.08004526]
[1726412302731,4.86062,2412.4,2412.3,1.08004526]
[1726412303343,4.86062,2412.4,2412.2,1.08004526]
[1726412303344,0.41443,2412.3,2412.2,1.08004526]
[1726412303641,0.41443,2412.3,2412.2,2.84282503]
[1726412303832,0.41443,2412.3,2412.2,2.84626432]
[1726412304038,0.41443,2412.3,2412.2,2.846271]
[1726412304738,0.41443,2412.3,2412.2,1.76278645]
[1726412304930,0.41445,2412.2,2412.1,1.08350535]
[1726412305130,0.41443,2412.4,2412.1,1.08350535]
[1726412305331,0.4053,2412.5,2412.2,1.08350535]
[1726412305332,0.41444,2412.3,2412.2,1.08350535]
[1726412305832,0.41442,2412.4,2412.2,1.08350535]
[1726412306030,0.41443,2412.3,2412.2,1.08350535]
[1726412306642,0.41443,2412.3,2412.1,1.08350535]
[1726412306838,0.41443,2412.3,2412.2,1.08350535]
[1726412307237,0.41443,2412.3,2412.1,2.7122067]
[1726412307433,0.41443,2412.3,2412.1,1.08350535]
[1726412308539,0.41442,2412.4,2412.1,1.08350535]
[1726412308844,0.41442,2412.4,2412.2,1.08350535]
[1726412309044,0.41443,2412.3,2412.2,1.08350535]
[1726412309540,0.81971,2412.5,2412.2,2.8463357]
[1726412309739,6.4478,2412.6,2412.3,0.7817]
[1726412309928,0.41441,2412.5,2412.3,0.7817]
[1726412310534,0.41442,2412.4,2412.3,0.7817]
[1726412313842,0.41441,2412.5,2412.3,1.86520535]
[1726412314344,0.41442,2412.4,2412.3,1.86520535]
[1726412317540,0.41442,2412.4,2412.3,1.08350535]
[1726412317940,1.90442,2412.4,2412.3,1.08350535]
[1726412321644,1.90442,2412.4,2412.3,1.48670535]
[1726412322738,6.05002,2412.4,2412.3,1.08350535]
[1726412323043,6.05002,2412.4,2411.9,1.62870135]
[1726412323044,0.41449,2412.0,2411.9,1.62870135]
[1726412323243,0.41449,2412.0,2411.8,0.389]
[1726412323244,0.4145,2411.9,2411.8,2.01770135]
[1726412323447,0.4145,2411.9,2411.8,3.77968262]
[1726412323951,0.4145,2411.9,2411.8,2.15098127]
[1726412324451,0.4145,2411.9,2411.8,0.389]
[1726412324847,0.2862,2411.9,2411.7,5.22040135]
[1726412325151,0.2862,2411.9,2411.7,5.60940135]
[1726412325345,0.70071,2411.9,2411.7,5.60940135]
[1726412325550,1.90449,2412.0,2411.7,5.60940135]
[1726412325754,0.41451,2411.9,2411.7,5.60940135]
[1726412326346,0.41449,2412.0,2411.7,5.60940135]
[1726412326539,1.90449,2412.0,2411.7,5.60940135]
[1726412327751,1.49,2412.0,2411.7,5.60940135]
[1726412327947,0.4145,2411.9,2411.7,5.60940135]
[1726412328947,0.4145,2411.9,2411.7,3.9807]
[1726412329258,1.9045,2412.0,2411.7,5.60940135]
[1726412329650,1.49,2411.9,2411.7,3.9807]
[1726412333256,1.49,2411.9,2411.7,0.7729]
[1726412334062,1.9045,2411.9,2411.7,0.7729]
[1726412339263,1.90449,2412.0,2411.7,0.7729]
[1726412339466,0.41449,2412.0,2411.7,0.7729]
[1726412339956,1.90449,2412.0,2411.7,0.7729]
[1726412343958,0.4145,2411.9,2411.7,2.40160135]
[1726412344165,0.4145,2411.9,2411.7,0.7729]
[1726412344960,1.90449,2412.0,2411.7,0.7729]
[1726412346061,1.49,2411.9,2411.7,0.7729]
[1726412346261,1.90451,2411.9,2411.7,0.7729]
[1726412347059,3.2078,2412.0,2411.7,0.7729]
[1726412347060,5.11229,2412.0,2411.7,0.7729]
[1726412347264,5.11229,2412.0,2411.7,2.40160135]
[1726412348564,0.3941,2412.4,2411.8,1.49]
[1726412348765,0.41446,2412.2,2411.9,3.5969]
[1726412348972,0.41446,2412.2,2411.9,0.3891]
[1726412349283,0.41446,2412.2,2412.0,0.4039]
[1726412349465,0.41446,2412.2,2412.1,0.3828]
[1726412350780,1.90444,2412.3,2412.1,0.3828]
[1726412351072,0.41441,2412.5,2412.1,0.3828]
[1726412351374,0.41442,2412.4,2412.1,0.3828]
[1726412351973,0.41441,2412.5,2412.1,0.3828]
[1726412352275,1.49,2412.4,2412.1,0.3828]
[1726412353277,1.49,2412.4,2412.1,0.79725]
[1726412353776,0.4144,2412.5,2412.1,0.79725]
[1726412353970,1.49,2412.4,2412.1,0.79725]
[1726412355078,1.49,2412.4,2412.1,4.00505]
[1726412355876,1.49,2412.3,2412.1,0.3828]
[1726412357665,1.90444,2412.3,2412.1,0.3828]
[1726412357869,2.31634,2412.3,2412.1,0.3828]
[1726412360078,2.31634,2412.3,2412.0,0.4039]
[1726412360376,1.49,2412.1,2412.0,0.4039]
[1726412361375,1.49,2412.1,2412.0,2.15541953]
[1726412361579,1.49,2412.1,2412.0,2.1553793]
[1726412362082,1.49,2412.1,2412.0,0.4039]
[1726412362575,3.00324,2412.3,2412.0,2.15418999]
[1726412362777,2.5888,2412.3,2412.0,0.4039]
[1726412363177,0.41445,2412.2,2412.0,0.4039]
[1726412363777,2.61704,2412.3,2412.0,0.4039]
[1726412366184,0.41445,2412.2,2412.0,0.4039]
[1726412366780,2.61704,2412.3,2412.0,0.4039]
[1726412367981,2.61704,2412.3,2412.0,2.03260135]
[1726412369975,1.49,2412.3,2412.0,2.44708135]
[1726412370176,0.41443,2412.4,2412.0,2.44708135]
[1726412370177,1.90443,2412.4,2412.0,2.44708135]
[1726412370378,1.49,2412.4,2412.1,0.41447]
[1726412370582,0.41441,2412.5,2412.2,0.3813]
[1726412370886,1.90441,2412.5,2412.3,0.399]
[1726412371087,1.49,2412.5,2412.3,0.7864]
[1726412372381,1.49,2412.4,2412.3,0.7864]
[1726412376491,1.90442,2412.4,2412.3,0.3874]